fUST/lending_fUST_20240828
["ID","MTS","AMOUNT","RATE_DAILY","PERIOD"]
[336406542,1724812247028,-21401.39071008,0.00013688,2]
[336406543,1724812247038,-500.0,0.00013697,2]
[336406544,1724812247048,-721.74,0.00013697,2]
[336406545,1724812247058,-151.0,0.00013697,2]
[336406546,1724812247069,-980.892453,0.00013697,2]
[336406547,1724812247078,-151.137193,0.00013697,2]
[336406548,1724812247088,-151.0,0.00013697,2]
[336406549,1724812247098,-980.892453,0.00013697,2]
[336406550,1724812247108,-709.875448,0.00013697,2]
[336406551,1724812247118,-151.0,0.00013697,2]
[336406552,1724812247127,-709.875448,0.00013697,2]
[336406553,1724812247136,-500.0,0.00013698,2]
[336406554,1724812247146,-500.0,0.00013698,2]
[336406555,1724812247156,-272.38026563,0.00013698,2]
[336406556,1724812247166,-500.0,0.00013698,2]
[336406557,1724812247176,-500.0,0.00013698,2]
[336406558,1724812247186,-178.11213212,0.00013698,2]
[336406559,1724812247196,-500.0,0.00013698,2]
[336406560,1724812247205,-500.0,0.00013698,2]
[336406561,1724812247215,-500.0,0.00013698,2]
[336406562,1724812247224,-500.0,0.00013698,2]
[336406563,1724812247233,-500.0,0.00013698,2]
[336406564,1724812247243,-500.0,0.00013698,2]
[336406565,1724812247252,-500.0,0.00013698,2]
[336406566,1724812247262,-500.0,0.00013698,2]
[336406567,1724812247272,-500.0,0.00013698,2]
[336406568,1724812247282,-399.45325586,0.00013698,2]
[336406569,1724812247291,-500.0,0.00013698,2]
[336406570,1724812247300,-500.0,0.00013698,2]
[336406571,1724812247310,-500.0,0.00013698,2]
[336406572,1724812247322,-500.0,0.00013698,2]
[336406573,1724812247331,-500.0,0.00013698,2]
[336406574,1724812247341,-500.0,0.00013698,2]
[336406575,1724812247354,-1190.95414524,0.00013698,2]
[336406576,1724812247365,-1190.95414524,0.00013698,2]
[336406577,1724812247375,-1190.95414524,0.00013698,2]
[336406578,1724812247386,-1190.95414524,0.00013698,2]
[336406579,1724812247396,-1190.95414524,0.00013698,2]
[336406580,1724812247407,-1190.95414524,0.00013698,2]
[336406581,1724812247417,-1190.95414524,0.00013698,2]
[336406582,1724812247427,-1190.95414524,0.00013698,2]
[336406583,1724812247438,-1190.95414524,0.00013698,2]
[336406584,1724812247449,-1190.95414524,0.00013698,2]
[336406585,1724812247460,-1190.95414524,0.00013698,2]
[336406586,1724812247470,-1190.95414524,0.00013698,2]
[336406587,1724812247480,-1190.95414524,0.00013698,2]
[336406588,1724812247490,-1536.33084736,0.00013698,2]
[336406589,1724812247499,-1536.33084736,0.00013698,2]
[336406590,1724812247509,-151.0,0.00013698,2]
[336406591,1724812247519,-639.603303,0.00013698,2]
[336406592,1724812247529,-639.603303,0.00013698,2]
[336406593,1724812247538,-716.97,0.00013698,2]
[336406594,1724812247548,-500.0,0.00013698,2]
[336406595,1724812247557,-648.24,0.00013698,2]
[336406596,1724812247567,-500.0,0.00013698,2]
[336406597,1724812247577,-500.0,0.00013698,2]
[336406598,1724812247586,-622.32,0.00013698,2]
[336406599,1724812247598,-339.777887,0.00013698,2]
[336406600,1724812247610,-339.777887,0.00013698,2]
[336406601,1724812247620,-2505.47,0.00013698,2]
[336406602,1724812247630,-3588.43,0.00013698,2]
[336406603,1724812247640,-526.22,0.00013698,2]
[336406604,1724812247650,-2299.92,0.00013698,2]
[336406605,1724812247661,-954.67,0.00013698,2]
[336406606,1724812247672,-151.0,0.00013698,2]
[336406607,1724812247683,-664.2,0.00013698,2]
[336406608,1724812247696,-4127.39,0.00013698,2]
[336406609,1724812247707,-687.31,0.00013698,2]
[336406610,1724812247717,-2314.46,0.00013698,2]
[336406611,1724812247727,-1325.83,0.00013698,2]
[336406612,1724812247736,-670.993442,0.00013698,2]
[336406613,1724812247745,-670.993442,0.00013698,2]
[336406614,1724812247755,-2989.09,0.00013698,2]
[336406615,1724812247765,-638.774642,0.00013698,2]
[336406616,1724812247774,-754.508346,0.00013698,2]
[336406617,1724812247783,-3136.78,0.00013698,2]
[336406618,1724812247794,-638.774642,0.00013698,2]
[336406619,1724812247804,-151.0,0.00013698,2]
[336406620,1724812247813,-754.508346,0.00013698,2]
[336406621,1724812247824,-151.0,0.00013698,2]
[336406622,1724812247837,-556.98,0.00013698,2]
[336406623,1724812247848,-1147.5,0.00013698,2]
[336406624,1724812247861,-500.0,0.00013698,2]
[336406625,1724812247872,-151.0,0.00013698,2]
[336406626,1724812247882,-12809.68,0.00013698,2]
[336406627,1724812247892,-151.850998,0.00013698,2]
[336406628,1724812247903,-2365.7,0.00013698,2]
[336406629,1724812247913,-671.518893,0.00013698,2]
[336406630,1724812247924,-500.0,0.00013698,2]
[336406631,1724812247933,-671.518893,0.00013698,2]
[336406632,1724812247943,-2560.76,0.00013698,2]
[336406633,1724812247952,-2498.29,0.00013698,2]
[336406634,1724812247963,-7143.5,0.00013698,2]
[336406635,1724812247974,-912.4,0.00013698,2]
[336406636,1724812247985,-3000.0,0.00013699,2]
[336406637,1724812247996,-1529.174338,0.00013699,2]
[336406638,1724812248007,-2551.05041677,0.00013699,2]
[336406639,1724812248017,-2551.05041677,0.00013699,2]
[336406640,1724812248028,-2551.05041677,0.00013699,2]
[336406641,1724812248037,-2551.05041677,0.00013699,2]
[336406642,1724812248047,-2551.05041677,0.00013699,2]
[336406643,1724812248056,-2551.05041677,0.00013699,2]
[336406644,1724812248066,-2551.05041677,0.00013699,2]
[336406645,1724812248075,-2551.05041677,0.00013699,2]
[336406646,1724812248084,-2551.05041677,0.00013699,2]
[336406647,1724812248094,-2551.05041677,0.00013699,2]
[336406648,1724812248104,-2551.05041677,0.00013699,2]
[336406649,1724812248114,-2551.05041677,0.00013699,2]
[336406650,1724812248123,-2551.05041677,0.00013699,2]
[336406651,1724812248132,-2551.05041677,0.00013699,2]
[336406652,1724812248141,-2551.05041677,0.00013699,2]
[336406653,1724812248151,-2551.05041677,0.00013699,2]
[336406654,1724812248160,-2551.05041677,0.00013699,2]
[336406655,1724812248170,-151.0,0.00013699,2]
[336406656,1724812248180,-151.0,0.00013699,2]
[336406657,1724812248190,-151.0,0.00013699,2]
[336406658,1724812248200,-169.458106,0.00013699,2]
[336406659,1724812248211,-169.458106,0.00013699,2]
[336406660,1724812248222,-530.164095,0.00013699,2]
[336406661,1724812248231,-530.164095,0.00013699,2]
[336406662,1724812248241,-494.496,0.00013699,2]
[336406663,1724812248250,-494.496,0.00013699,2]
[336406664,1724812248260,-220.644244,0.00013699,2]
[336406665,1724812248270,-220.644244,0.00013699,2]
[336406666,1724812248281,-730.167069,0.00013699,2]
[336406667,1724812248291,-730.167069,0.00013699,2]
[336406668,1724812248303,-1000.0,0.00013789,2]
[336406669,1724812248313,-3000.0,0.000138,30]
[336406670,1724812248323,-151.0,0.000138,2]
[336406671,1724812248334,-151.0,0.000138,2]
[336406672,1724812248346,-151.0,0.000138,2]
[336406673,1724812248355,-255.229519,0.000138,2]
[336406674,1724812248365,-151.0,0.000138,2]
[336406675,1724812248375,-255.229519,0.000138,2]
[336406676,1724812248385,-151.0,0.000138,2]
[336406677,1724812248395,-151.0,0.000138,2]
[336406678,1724812248406,-302.0,0.000138,2]
[336406679,1724812248417,-24026.11069791,0.0001381,5]
[336406680,1724812248427,-3000.0,0.0001381,30]
[336406681,1724812248437,-3000.0,0.0001382,30]
[336406682,1724812248448,-672.481543,0.0001382,2]
[336406683,1724812248458,-151.0,0.0001382,2]
[336406684,1724812248467,-151.0,0.0001382,2]
[336406685,1724812248478,-672.481543,0.0001382,2]
[336406686,1724812248488,-196.79273,0.0001382,2]
[336406687,1724812248497,-196.79273,0.0001382,2]
[336406688,1724812248508,-151.0,0.0001382,2]
[336406689,1724812248518,-151.0,0.0001382,2]
[336406690,1724812248528,-151.0,0.0001382,2]
[336406691,1724812248538,-151.0,0.0001382,2]
[336406692,1724812248548,-596.15711561,0.0001382,2]
[336406693,1724812249616,-4826.37608539,0.0001382,2]
[336406694,1724812249625,-5422.533201,0.0001382,2]
[336406695,1724812249635,-384.4983,0.0001382,2]
[336406696,1724812249644,-384.4983,0.0001382,2]
[336406697,1724812249783,-151.0,0.0001382,2]
[336406698,1724812249794,-666.87100461,0.00013824,2]
[336406699,1724812249806,-1333.12899539,0.00013824,2]
[336406700,1724812249816,-127.87101383,0.0001383,30]
[336406701,1724812249971,-835.63796187,0.0001383,30]
[336406702,1724812250371,-535.33512,0.00010544,2]
[336406703,1724812250381,-500.0,0.00010958,2]
[336406704,1724812250390,-500.0,0.00010958,2]
[336406705,1724812250400,-2036.4910243,0.0001383,30]
[336406707,1724812250409,-2199.17509787,0.0001384,30]
[336406708,1724812250425,-265.18961674,0.0001384,30]
[336406709,1724812250439,-535.63528539,0.0001384,30]
[336406710,1724812250448,-3000.0,0.0001385,30]
[336406711,1724812250458,-3000.0,0.0001386,30]
[336406712,1724812250470,-317.93506586,0.00013867,2]
[336406713,1724812250482,-682.06493414,0.00013867,2]
[336406714,1724812250492,-3000.0,0.0001387,30]
[336406715,1724812250503,-450.951988,0.0001388,2]
[336406716,1724812250514,-387.04036415,0.0001388,2]
[336406717,1724812250531,-63.91162385,0.0001388,2]
[336406718,1724812250541,-151.0,0.0001388,2]
[336406719,1724812250550,-158.783399,0.0001388,2]
[336406720,1724812250560,-158.783399,0.0001388,2]
[336406721,1724812250569,-3000.0,0.0001388,30]
[336406722,1724812250582,-3000.0,0.0001389,30]
[336406723,1724812250592,-3000.0,0.000139,30]
[336406724,1724812250603,-3000.0,0.0001391,30]
[336406725,1724812250613,-3000.0,0.0001392,30]
[336406726,1724812250623,-3000.0,0.0001393,30]
[336406727,1724812250633,-207.8863433,0.00013931,2]
[336406728,1724812250643,-207.7907237,0.00013931,2]
[336406729,1724812250654,-207.7907237,0.00013931,2]
[336406730,1724812250666,-207.7907237,0.00013931,2]
[336406731,1724812250676,-207.7907237,0.00013931,2]
[336406732,1724812250686,-208.7210692,0.00013931,2]
[336406733,1724812250697,-500.0,0.00013936,2]
[336406734,1724812250706,-3000.0,0.0001394,30]
[336406735,1724812250717,-151.0,0.0001394,2]
[336406736,1724812250727,-151.0,0.0001394,2]
[336406737,1724812250738,-3550.96673,0.0001395,30]
[336406738,1724812250748,-169.03450064,0.0001397,2]
[336406739,1724812250758,-4386.44038998,0.0001397,2]
[336406740,1724812250768,-164.953724,0.00013971,2]
[336406741,1724812250777,-151.0,0.00013971,2]
[336406742,1724812250786,-151.0,0.00013971,2]
[336406743,1724812250795,-334.567785,0.00013971,2]
[336406744,1724812250805,-334.567785,0.00013971,2]
[336406745,1724812250814,-317.021743,0.00013971,2]
[336406746,1724812250824,-317.021743,0.00013971,2]
[336406747,1724812250835,-500.0,0.00013971,2]
[336406748,1724812250846,-721.74,0.00013971,2]
[336406749,1724812250856,-151.0,0.00013972,2]
[336406750,1724812250865,-151.0,0.00013972,2]
[336406751,1724812250875,-151.0,0.00013972,2]
[336406752,1724812250884,-151.0,0.00013972,2]
[336406753,1724812250894,-166.768526,0.00013972,2]
[336406754,1724812250904,-166.768526,0.00013972,2]
[336406755,1724812250914,-200.94718,0.00013972,2]
[336406756,1724812250923,-200.94718,0.00013972,2]
[336406757,1724812250934,-716.97,0.00013972,2]
[336406758,1724812250943,-151.0,0.00013972,2]
[336406759,1724812250952,-183.766337,0.00013972,2]
[336406760,1724812250961,-151.0,0.00013972,2]
[336406761,1724812250972,-423.326158,0.00013972,2]
[336406762,1724812250983,-423.326158,0.00013972,2]
[336406763,1724812250993,-845.610681,0.00013972,2]
[336406764,1724812251002,-845.610681,0.00013972,2]
[336406765,1724812251012,-256.079484,0.00013972,2]
[336406766,1724812251022,-256.079484,0.00013972,2]
[336406767,1724812251031,-500.0,0.00013972,2]
[336406768,1724812251041,-648.24,0.00013972,2]
[336406769,1724812251051,-500.0,0.00013972,2]
[336406770,1724812251061,-500.0,0.00013972,2]
[336406771,1724812251070,-622.32,0.00013972,2]
[336406772,1724812251079,-3588.43,0.00013972,2]
[336406773,1724812251089,-526.22,0.00013972,2]
[336406774,1724812251099,-2299.92,0.00013972,2]
[336406775,1724812251108,-954.67,0.00013972,2]
[336406776,1724812251118,-664.2,0.00013972,2]
[336406777,1724812251128,-4127.39,0.00013972,2]
[336406778,1724812251138,-2314.46,0.00013972,2]
[336406779,1724812251149,-687.31,0.00013972,2]
[336406780,1724812251159,-1325.83,0.00013972,2]
[336406781,1724812251169,-2989.09,0.00013972,2]
[336406782,1724812251178,-3136.78,0.00013972,2]
[336406783,1724812251189,-556.98,0.00013972,2]
[336406784,1724812251200,-1147.5,0.00013972,2]
[336406785,1724812251209,-500.0,0.00013972,2]
[336406786,1724812251219,-12809.68,0.00013972,2]
[336406787,1724812251228,-2365.7,0.00013972,2]
[336406788,1724812251238,-500.0,0.00013972,2]
[336406789,1724812251249,-2560.76,0.00013972,2]
[336406790,1724812251259,-151.0,0.00013972,2]
[336406791,1724812251270,-2498.29,0.00013972,2]
[336406792,1724812251281,-537.170739,0.00013972,2]
[336406793,1724812251292,-537.170739,0.00013972,2]
[336406794,1724812251302,-980.892453,0.00013972,2]
[336406795,1724812251313,-151.0,0.00013972,2]
[336406796,1724812251324,-980.892453,0.00013972,2]
[336406797,1724812251334,-7143.5,0.00013972,2]
[336406798,1724812251346,-709.875448,0.00013972,2]
[336406799,1724812251359,-217.959869,0.00013972,2]
[336406800,1724812251368,-709.875448,0.00013972,2]
[336406801,1724812251379,-912.4,0.00013972,2]
[336406802,1724812251389,-154.60575532,0.00014,2]
[336406803,1724812251399,-1000.0,0.00014,2]
[336406804,1724812251409,-583.2,0.00014,2]
[336406805,1724812251420,-150.112233,0.00014,2]
[336406806,1724812251432,-600.0,0.00014084,2]
[336406807,1724812251442,-600.0,0.00014084,2]
[336406808,1724812251452,-600.0,0.00014084,2]
[336406809,1724812251462,-306.0,0.00014145,2]
[336406810,1724812251472,-151.0,0.00014146,2]
[336406811,1724812251482,-639.603303,0.00014146,2]
[336406812,1724812251493,-639.603303,0.00014146,2]
[336406813,1724812251502,-150.0,0.00014205,2]
[336406814,1724812251513,-1000.0,0.00014221,2]
[336406815,1724812251524,-500.0,0.00014245,2]
[336406816,1724812251534,-721.74,0.00014245,2]
[336406817,1724812251546,-154.60575532,0.00014245,2]
[336406818,1724812251556,-716.97,0.00014246,2]
[336406819,1724812251565,-151.0,0.00014246,2]
[336406820,1724812251576,-151.0,0.00014246,2]
[336406821,1724812251585,-151.0,0.00014246,2]
[336406822,1724812251595,-500.0,0.00014246,2]
[336406823,1724812251604,-255.229519,0.00014246,2]
[336406824,1724812251613,-151.0,0.00014246,2]
[336406825,1724812251623,-255.229519,0.00014246,2]
[336406826,1724812251632,-151.0,0.00014246,2]
[336406827,1724812251641,-151.0,0.00014246,2]
[336406828,1724812251651,-151.0,0.00014246,2]
[336406829,1724812251660,-151.0,0.00014246,2]
[336406830,1724812251669,-151.0,0.00014246,2]
[336406831,1724812251679,-648.24,0.00014246,2]
[336406832,1724812251688,-5422.533201,0.00014246,2]
[336406833,1724812251698,-5422.533201,0.00014246,2]
[336406834,1724812251710,-151.0,0.00014246,2]
[336406835,1724812251720,-384.4983,0.00014246,2]
[336406836,1724812251730,-384.4983,0.00014246,2]
[336406837,1724812251741,-554.21990581,0.00014246,2]
[336406838,1724812251754,-500.0,0.00014246,2]
[336406839,1724812251764,-151.0,0.00014246,2]
[336406840,1724812251776,-151.0,0.00014246,2]
[336406841,1724812251785,-169.458106,0.00014246,2]
[336406842,1724812251795,-169.458106,0.00014246,2]
[336406843,1724812251805,-530.164095,0.00014246,2]
[336406844,1724812251816,-530.164095,0.00014246,2]
[336406845,1724812251825,-622.32,0.00014246,2]
[336406846,1724812251836,-494.496,0.00014246,2]
[336406847,1724812251846,-494.496,0.00014246,2]
[336406848,1724812251855,-339.777887,0.00014246,2]
[336406849,1724812251865,-220.644244,0.00014246,2]
[336406850,1724812251875,-339.777887,0.00014246,2]
[336406851,1724812251885,-220.644244,0.00014246,2]
[336406852,1724812251894,-3588.43,0.00014246,2]
[336406853,1724812251903,-526.22,0.00014246,2]
[336406854,1724812251912,-2299.92,0.00014246,2]
[336406855,1724812251922,-954.67,0.00014246,2]
[336406856,1724812251931,-151.0,0.00014246,2]
[336406857,1724812251940,-664.2,0.00014246,2]
[336406858,1724812251950,-730.167069,0.00014246,2]
[336406859,1724812251959,-4127.39,0.00014246,2]
[336406860,1724812251970,-730.167069,0.00014246,2]
[336406861,1724812251981,-787.25101878,0.00014246,2]
[336406862,1724812253117,-621.63,0.00010958,2]
[336406863,1724812253127,-503.03022032,0.00010958,2]
[336406864,1724812253136,-502.3731069,0.00010958,2]
[336406865,1724812253146,-500.0,0.00010958,2]
[336406866,1724812253155,-500.0,0.00011232,2]
[336406867,1724812253164,-500.0,0.00011506,2]
[336406868,1724812253173,-500.0,0.0001178,2]
[336406869,1724812253183,-500.0,0.00012054,2]
[336406870,1724812253192,-500.0,0.00012328,2]
[336406871,1724812253201,-2715.06569498,0.00012516,2]
[336406872,1724812253210,-302.93,0.00012602,2]
[336406873,1724812253220,-154.55950541,0.00012898,2]
[336406874,1724812253229,-1331.15505839,0.00014246,2]
[336406875,1724812253634,-196.05392283,0.00014246,2]
[336406876,1724812253643,-687.31,0.00014246,2]
[336406877,1724812253653,-1135.46247017,0.00014246,2]
[336406878,1724812253666,-190.36752983,0.00014246,2]
[336406879,1724812253676,-670.993442,0.00014246,2]
[336406880,1724812253686,-670.993442,0.00014246,2]
[336406881,1724812253695,-2989.09,0.00014246,2]
[336406882,1724812253705,-638.774642,0.00014246,2]
[336406883,1724812253715,-754.508346,0.00014246,2]
[336406884,1724812253724,-246.20121634,0.00014246,2]
[336406896,1724813187346,-301.82720385,8.793e-05,2]
[336406897,1724813187379,-366.58737916,8.883e-05,2]
[336406898,1724813187408,-305.23720473,8.883e-05,2]
[336406899,1724813187437,-1518.9016726,9.335e-05,2]
[336406900,1724813187467,-154.54409492,9.429e-05,2]
[336406901,1724813187496,-300.35076558,9.524e-05,2]
[336406902,1724813187526,-632.25208149,9.524e-05,2]
[336406903,1724813187556,-250.0,9.643e-05,2]
[336406904,1724813187596,-250.0,9.67e-05,2]
[336406905,1724813187631,-250.0,9.696e-05,2]
[336406906,1724813187664,-250.0,9.723e-05,2]
[336406907,1724813187695,-300.0,9.748e-05,2]
[336406908,1724813187727,-24900.0,9.749e-05,2]
[336406909,1724813187758,-190.59919534,9.749e-05,2]
[336406910,1724813188008,-59.40080466,9.749e-05,2]
[336406912,1724813240106,-302.42957402,9.749e-05,2]
[336406913,1724813242110,-355.2726415,9.749e-05,2]
[336406918,1724813318289,-192.17099863,8.761e-05,2]
[336406919,1724813318314,-24900.0,9.04e-05,2]
[336406920,1724813318339,-3095.48272537,9.524e-05,2]
[336406921,1724813318367,-18878.85542698,9.749e-05,2]
[336406922,1724813318391,-3472.24991574,9.749e-05,2]
[336406923,1724813318417,-250.0,9.776e-05,2]
[336406924,1724813318445,-250.0,9.802e-05,2]
[336406925,1724813318468,-250.0,9.828e-05,2]
[336406926,1724813318493,-250.0,9.855e-05,2]
[336406927,1724813318517,-250.0,9.881e-05,2]
[336406928,1724813318543,-250.0,9.908e-05,2]
[336406929,1724813318568,-250.0,9.934e-05,2]
[336406930,1724813318595,-308.48741065,9.939e-05,2]
[336406931,1724813318620,-250.0,9.961e-05,2]
[336406932,1724813318647,-250.0,9.987e-05,2]
[336406933,1724813318671,-250.0,0.00010013,2]
[336406934,1724813318698,-250.0,0.0001004,2]
[336406935,1724813318726,-250.0,0.00010066,2]
[336406936,1724813318754,-250.0,0.00010093,2]
[336406937,1724813318780,-250.0,0.00010119,2]
[336406938,1724813318806,-250.0,0.00010146,2]
[336406939,1724813318831,-495.61532932,0.00010957,2]
[336406940,1724813318857,-502.23549555,0.00010958,2]
[336406941,1724813318883,-500.4084261,0.00010958,2]
[336406942,1724813318906,-500.78474737,0.00010958,2]
[336406943,1724813318930,-500.0,0.00010958,2]
[336406944,1724813318953,-500.0,0.00010958,2]
[336406945,1724813318976,-500.0,0.00010958,2]
[336406946,1724813319000,-500.0,0.00010958,2]
[336406947,1724813319023,-503.93948289,0.00010958,2]
[336406948,1724813319045,-500.53110244,0.00010958,2]
[336406949,1724813319069,-307.485233,0.00010958,2]
[336406950,1724813319092,-500.0,0.00010958,2]
[336406951,1724813319115,-512.11818085,0.00010958,2]
[336406952,1724813319138,-500.0,0.00010958,2]
[336406953,1724813319161,-507.72629307,0.00010958,2]
[336406954,1724813319184,-500.0,0.00010958,2]
[336406955,1724813319208,-503.82339169,0.00010958,2]
[336406956,1724813319235,-500.0,0.00010958,2]
[336406957,1724813319257,-500.0,0.00010958,2]
[336406958,1724813319282,-502.94526355,0.00010958,2]
[336406959,1724813319307,-500.0,0.00010958,2]
[336406960,1724813319332,-506.02792091,0.00010958,2]
[336406961,1724813319358,-500.0,0.00010958,2]
[336406962,1724813319383,-500.0,0.00010958,2]
[336406963,1724813319409,-500.0,0.00010958,2]
[336406964,1724813319432,-500.82784187,0.00010958,2]
[336406965,1724813319456,-500.0,0.00010958,2]
[336406966,1724813319480,-500.0,0.00010958,2]
[336406967,1724813319507,-500.0,0.00010958,2]
[336406968,1724813319531,-500.0,0.00010958,2]
[336406969,1724813319556,-500.0,0.00010958,2]
[336406970,1724813319581,-500.0,0.00010958,2]
[336406971,1724813319607,-500.0,0.00010958,2]
[336406972,1724813319630,-500.0,0.00010958,2]
[336406973,1724813319657,-552.39303487,0.00010958,2]
[336406974,1724813319683,-502.54480465,0.00010958,2]
[336406975,1724813319720,-500.0,0.00010958,2]
[336406976,1724813319882,-500.0,0.00010958,2]
[336406977,1724813319958,-500.0,0.00010958,2]
[336406978,1724813319983,-500.0,0.00010958,2]
[336406979,1724813320010,-502.77020799,0.00010958,2]
[336406980,1724813320034,-500.0,0.00010958,2]
[336406981,1724813320062,-500.0,0.00010958,2]
[336406982,1724813320089,-500.0,0.00010958,2]
[336406983,1724813320115,-164.99073393,0.00010958,2]
[336406984,1724813320138,-500.0,0.00010958,2]
[336406985,1724813320161,-500.0,0.00010958,2]
[336406986,1724813320185,-500.0,0.00010958,2]
[336406987,1724813320209,-500.0,0.00010958,2]
[336406988,1724813320237,-500.0,0.00010958,2]
[336406989,1724813320263,-500.0,0.00010958,2]
[336406990,1724813320286,-500.0,0.00010958,2]
[336406991,1724813320311,-506.21006225,0.00010958,2]
[336406992,1724813320334,-196.18457322,0.00010958,2]
[336406993,1724813320360,-503.99663184,0.00010958,2]
[336406994,1724813320391,-500.0,0.00010958,2]
[336406995,1724813320417,-505.72332352,0.00010958,2]
[336406996,1724813320444,-500.0,0.00010958,2]
[336406997,1724813320468,-501.91682574,0.00010958,2]
[336406998,1724813320497,-505.05139864,0.00010958,2]
[336406999,1724813320524,-500.0,0.00010958,2]
[336407000,1724813320552,-500.0,0.00010958,2]
[336407001,1724813320579,-500.0,0.00010958,2]
[336407002,1724813320605,-500.0,0.00010958,2]
[336407003,1724813320631,-500.0,0.00010958,2]
[336407004,1724813320659,-500.0,0.00010958,2]
[336407005,1724813320684,-500.0,0.00010958,2]
[336407006,1724813320708,-665.48,0.00010958,2]
[336407007,1724813320736,-500.0,0.00010958,2]
[336407008,1724813320760,-502.67333489,0.00010958,2]
[336407009,1724813320784,-538.29678156,0.00010958,2]
[336407010,1724813320806,-503.00000001,0.00010958,2]
[336407011,1724813320829,-500.0,0.00010958,2]
[336407012,1724813320851,-283.12745465,0.00010958,2]
[336407013,1724813320876,-565.31694108,0.00010958,2]
[336407014,1724813320899,-500.21449002,0.00010958,2]
[336407015,1724813320922,-500.0,0.00010958,2]
[336407016,1724813320946,-500.7986927,0.00010958,2]
[336407017,1724813320970,-500.0,0.00010958,2]
[336407018,1724813320995,-500.0,0.00010958,2]
[336407019,1724813321020,-530.91009721,0.00010958,2]
[336407020,1724813321043,-500.81626309,0.00010958,2]
[336407021,1724813321067,-501.32974642,0.00010958,2]
[336407022,1724813321092,-503.29930118,0.00010958,2]
[336407023,1724813321117,-500.0,0.00010958,2]
[336407024,1724813321140,-500.0,0.00010958,2]
[336407025,1724813321163,-500.0,0.00010958,2]
[336407026,1724813321188,-506.42653875,0.00010958,2]
[336407027,1724813321215,-500.0,0.00010958,2]
[336407028,1724813321241,-500.0,0.00010958,2]
[336407029,1724813321266,-500.0,0.00010958,2]
[336407030,1724813321293,-500.0,0.00010958,2]
[336407031,1724813321317,-500.0,0.00010958,2]
[336407032,1724813321340,-500.0,0.00010958,2]
[336407033,1724813321366,-500.0,0.00010958,2]
[336407034,1724813321392,-500.0,0.00010958,2]
[336407035,1724813321417,-500.0,0.00010958,2]
[336407036,1724813321444,-500.0,0.00010958,2]
[336407037,1724813321468,-500.0,0.00010958,2]
[336407038,1724813321493,-500.0,0.00010958,2]
[336407039,1724813321519,-500.0,0.00010958,2]
[336407040,1724813321543,-500.0,0.00010958,2]
[336407041,1724813321567,-769.1,0.00010958,2]
[336407042,1724813321592,-500.0,0.00010958,2]
[336407043,1724813321615,-501.22560487,0.00010958,2]
[336407044,1724813321640,-500.0,0.00010958,2]
[336407045,1724813321671,-500.0,0.00010958,2]
[336407046,1724813321698,-500.0,0.00010958,2]
[336407047,1724813321722,-500.0,0.00010958,2]
[336407048,1724813321749,-500.0,0.00010958,2]
[336407049,1724813321773,-503.34807981,0.00010958,2]
[336407050,1724813321797,-501.20179066,0.00010958,2]
[336407051,1724813321822,-625.43114494,0.00010958,2]
[336407052,1724813321848,-500.0,0.00010958,2]
[336407053,1724813321871,-500.0,0.00010958,2]
[336407054,1724813321894,-500.0,0.00010958,2]
[336407055,1724813321917,-500.0,0.00010958,2]
[336407056,1724813321940,-500.58351881,0.00010958,2]
[336407057,1724813321966,-500.0,0.00010958,2]
[336407058,1724813321989,-500.0,0.00010958,2]